[Event "24th European Women Club Cup 2019"]
[Site "Ulcinj"]
[Date "2019.11.14"]
[Round "5.12"]
[White "Mar, Karmen"]
[Black "Mamedjarova, Zeinab"]
[Result "1/2-1/2"]
[ECO "B01"]
[WhiteElo "2041"]
[BlackElo "2280"]
[Annotator "NA"]
[PlyCount "52"]
[EventDate "2019.11.10"]
[EventType "team-tourn"]
[EventCountry "MNE"]
[SourceTitle "playchess.com"]
[Source "ChessBase"]
[SourceQuality "1"]
[WhiteTeam "Maribor"]
[BlackTeam "Odlar Yurdu"]
[TimeControl "40/5400+30:1800+30"]

1. e4 {[%emt 0:00:00]} d5 {[%emt 0:00:00]} 2. exd5 {[%emt 0:00:00]} Qxd5 {[%emt 0:00:00]} 3. Nc3 {[%emt 0:00:04]} Qd8 {[%emt 0:00:00]} 4. d4 {[%emt 0:00:17]} Nf6 {[%emt 0:00:12]} 5. Nf3 {[%emt 0:00:30]} e6 {[%emt 0:00:00]} 6. Ne5 {[%emt 0:00:23]} Be7 {[%emt 0:01:14]} 7. Be3 {[%emt 0:00:27]} Nbd7 {[%emt 0:02:58]} 8. Qf3 {[%emt 0:05:11]} c6 {[%emt 0:04:45]} 9. Qg3 {[%emt 0:12:08]} g6 {[%emt 0:03:11]} 10. O-O-O {[%emt 0:04:12]} Nd5 {[%emt 0:07:06]} 11. Bd2 {[%emt 0:19:21]} Nxc3 {[%emt 0:18:44]} 12. Bxc3 {[%emt 0:01:26]} Nxe5 {[%emt 0:07:58]} 13. dxe5 {[%emt 0:07:19]} Qc7 {[%emt 0:01:45]} 14. Be2 {[%emt 0:15:06]} Bd7 {[%emt 0:02:03]} 15. Bd4 {[%emt 0:04:32]} O-O-O {[%emt 0:04:01]} 16. h4 {[%emt 0:04:08]} h5 {[%emt 0:02:26]} 17. Be3 {[%emt 0:02:39]} c5 {[%emt 0:06:57]} 18. Bg5 {[%emt 0:03:45]} Bc6 {[%emt 0:06:54]} 19. Bxe7 {[%emt 0:05:24]} Qxe7 {[%emt 0:00:07]} 20. Bf3 {[%emt 0:04:42]} Bd5 {[%emt 0:01:10]} 21. Bxd5 {[%emt 0:03:03]} exd5 {[%emt 0:00:23]} 22. Rhe1 {[%emt 0:00:58]} Qe6 {[%emt 0:05:06]} 23. Qa3 Qb6 {[%emt 0:00:32]} 24. Qf3 {[%emt 0:01:34]} Qe6 {[%emt 0:06:19]} 25. Qa3 {[%emt 0:00:14]} Qb6 {[%emt 0:09:38]} 26. Qf3 {[%emt 0:00:08]} Qe6 {[%emt 0:06:18]} 1/2-1/2

[Event "24th European Women Club Cup 2019"]
[Site "Ulcinj"]
[Date "2019.11.14"]
[Round "5.13"]
[White "Ushenina, Anna"]
[Black "Injac, Teodora"]
[Result "1/2-1/2"]
[ECO "E46"]
[WhiteElo "2439"]
[BlackElo "2257"]
[Annotator "RC"]
[PlyCount "134"]
[EventDate "2019.11.10"]
[EventType "team-tourn"]
[EventCountry "MNE"]
[SourceTitle "playchess.com"]
[Source "ChessBase"]
[SourceQuality "1"]
[WhiteTeam "Ugra"]
[BlackTeam "Jelica PEP"]
[TimeControl "40/5400+30:1800+30"]

1. d4 {[%emt 0:00:00]} Nf6 {[%emt 0:00:00]} 2. c4 {[%emt 0:00:00]} e6 {[%emt 0:00:00]} 3. Nc3 {[%emt 0:00:27]} Bb4 {[%emt 0:00:00]} 4. e3 {[%emt 0:00:42]} O-O {[%emt 0:00:33]} 5. Nge2 {[%emt 0:00:45]} d5 {[%emt 0:00:48]} 6. a3 {[%emt 0:00:22]} Bd6 {[%emt 0:00:56]} 7. Ng3 {[%emt 0:03:53]} c6 {[%emt 0:07:10]} 8. Be2 {[%emt 0:07:02]} dxc4 {[%emt 0:04:51]} 9. Bxc4 {[%emt 0:00:21]} e5 {[%emt 0:00:28]} 10. O-O {[%emt 0:23:53]} exd4 {[%emt 0:07:02]} 11. exd4 {[%emt 0:00:00]} Nbd7 {[%emt 0:02:49]} 12. Bb3 {[%emt 0:13:12]} Nb6 {[%emt 0:03:41]} 13. Bc2 {[%emt 0:12:29]} Re8 {[%emt 0:31:34]} 14. Qd3 {[%emt 0:04:48]} h6 {[%emt 0:12:48]} 15. Nf5 {[%emt 0:06:05]} Bxf5 {[%emt 0:01:35]} 16. Qxf5 {[%emt 0:00:01]} Qc8 {[%emt 0:00:45]} 17. Qd3 {[%emt 0:00:38]} Qg4 {[%emt 0:02:01]} 18. h3 {[%emt 0:02:19]} Qe6 {[%emt 0:02:21]} 19. Qf3 {[%emt 0:05:53]} Bc7 {[%emt 0:01:26]} 20. Bf5 {[%emt 0:03:02]} Qd6 {[%emt 0:00:24]} 21. g3 {[%emt 0:00:03]} Nbd5 {[%emt 0:00:55]} 22. Rd1 {[%emt 0:02:26]} Re7 {[%emt 0:04:25]} 23. Bd2 {[%emt 0:01:39]} Rae8 {[%emt 0:00:41]} 24. h4 {[%emt 0:04:28]} Bb6 {[%emt 0:00:41]} 25. Qd3 {[%emt 0:00:52]} Bc7 {[%emt 0:04:17]} 26. Re1 {[%emt 0:00:44]} Rxe1+ {[%emt 0:01:29]} 27. Bxe1 {[%emt 0:00:04]} Bb6 {[%emt 0:02:31]} 28. Bh3 {[%emt 0:01:19]} Nc7 {[%emt 0:01:42]} 29. Ne2 {[%emt 0:00:17]} Ne6 {[%emt 0:02:11]} 30. Bc3 {[%emt 0:00:06]} Nd5 {[%emt 0:01:56]} 31. Qc4 {[%emt 0:03:07]} Nec7 {[%emt 0:00:25]} 32. a4 {[%emt 0:00:35]} a5 {[%emt 0:00:29]} 33. Rd1 {[%emt 0:00:14]} Qg6 {[%emt 0:00:48]} 34. Nc1 {[%emt 0:01:36]} Qf6 {[%emt 0:02:28]} 35. Nb3 {[%emt 0:00:44]} Qf3 {[%emt 0:00:41]} 36. Qd3 {[%emt 0:03:10]} Qxd3 {[%emt 0:00:29]} 37. Rxd3 {[%emt 0:00:01]} Nxc3 {[%emt 0:00:29]} 38. bxc3 {[%emt 0:00:08]} Re1+ {[%emt 0:00:32]} 39. Kg2 {[%emt 0:00:01]} Nd5 {[%emt 0:00:29]} 40. Bc8 {[%emt 0:00:00]} Re7 {[%emt 0:00:00]} 41. c4 {[%emt 0:05:39]} Nb4 {[%emt 0:11:47]} 42. Rd2 {[%emt 0:03:53]} Kf8 {[%emt 0:04:25]} 43. Kf1 {[%emt 0:02:20]} Ke8 {[%emt 0:03:41]} 44. Bg4 {[%emt 0:02:42]} Kd8 {[%emt 0:05:20]} 45. Bf3 {[%emt 0:05:14]} Kc8 {[%emt 0:01:13]} 46. Be2 {[%emt 0:00:56]} Kb8 {[%emt 0:00:46]} 47. Kg2 {[%emt 0:00:47]} Re6 {[%emt 0:02:09]} 48. h5 {[%emt 0:01:06]} Re7 {[%emt 0:00:31]} 49. Kf3 {[%emt 0:00:26]} Re6 {[%emt 0:00:27]} 50. Kg4 {[%emt 0:02:00]} Re4+ {[%emt 0:02:10]} 51. Kf3 {[%emt 0:00:38]} Re6 {[%emt 0:00:04]} 52. Kg2 {[%emt 0:03:55]} Re7 {[%emt 0:00:17]} 53. Kf1 {[%emt 0:00:16]} Re6 {[%emt 0:02:18]} 54. Ke1 {[%emt 0:00:21]} Re7 {[%emt 0:00:35]} 55. Kd1 {[%emt 0:00:15]} Re8 {[%emt 0:00:25]} 56. Kc1 {[%emt 0:00:31]} Bd8 {[%emt 0:00:42]} 57. Kd1 {[%emt 0:02:19]} Bg5 {[%emt 0:00:26]} 58. Rb2 {[%emt 0:00:52]} b6 {[%emt 0:00:17]} 59. c5 {[%emt 0:03:01]} Kc7 {[%emt 0:00:21]} 60. cxb6+ {[%emt 0:00:25]} Kxb6 {[%emt 0:00:04]} 61. Bc4 {[%emt 0:00:18]} f5 {[%emt 0:01:53]} 62. Re2 {[%emt 0:00:41]} Rd8 {[%emt 0:01:08]} 63. f4 {[%emt 0:04:45]} Bf6 {[%emt 0:00:03]} 64. Rd2 {[%emt 0:00:06]} Re8 {[%emt 0:01:15]} 65. Re2 {[%emt 0:00:13]} Rd8 {[%emt 0:00:06]} 66. Rd2 {[%emt 0:00:10]} Re8 {[%emt 0:00:01]} 67. Re2 {[%emt 0:00:44]} Rd8 {[%emt 0:00:31]} 1/2-1/2

[Event "24th European Women Club Cup 2019"]
[Site "Ulcinj"]
[Date "2019.11.14"]
[Round "5.14"]
[White "Velikic, Adela"]
[Black "Pogonina, Natalija"]
[Result "0-1"]
[ECO "C50"]
[WhiteElo "2275"]
[BlackElo "2479"]
[Annotator "ChessBase"]
[PlyCount "80"]
[EventDate "2019.11.10"]
[EventType "team-tourn"]
[EventCountry "MNE"]
[SourceTitle "playchess.com"]
[Source "ChessBase"]
[SourceQuality "1"]
[WhiteTeam "Jelica PEP"]
[BlackTeam "Ugra"]
[TimeControl "40/5400+30:1800+30"]

1. e4 {[%emt 0:00:00]} e5 {[%emt 0:00:00]} 2. Nf3 {[%emt 0:00:00]} Nc6 {[%emt 0:00:00]} 3. Bc4 {[%emt 0:00:00]} Bc5 {[%emt 0:00:00]} 4. O-O {[%emt 0:00:00]} Nf6 {[%emt 0:00:16]} 5. d3 {[%emt 0:00:00]} d6 {[%emt 0:00:56]} 6. c3 {[%emt 0:00:02]} a6 {[%emt 0:00:17]} 7. a4 {[%emt 0:00:06]} Ba7 {[%emt 0:00:34]} 8. h3 {[%emt 0:00:23]} O-O {[%emt 0:02:18]} 9. Bg5 {[%emt 0:04:00]} h6 {[%emt 0:05:08]} 10. Bh4 {[%emt 0:00:12]} g5 {[%emt 0:01:12]} 11. Nxg5 {[%emt 0:31:23]} hxg5 {[%emt 0:00:10]} 12. Bxg5 {[%emt 0:00:03]} Kg7 {[%emt 0:04:02]} 13. Qf3 {[%emt 0:00:22]} Kg6 {[%emt 0:02:33]} 14. Bh4 {[%emt 0:07:47]} Rg8 {[%emt 0:15:40]} 15. Na3 {[%emt 0:17:54]} Be6 {[%emt 0:04:22]} 16. Nc2 {[%emt 0:02:15]} Nb8 {[%emt 0:02:36]} 17. Ne3 {[%emt 0:01:16]} Nbd7 {[%emt 0:03:18]} 18. Nf5 {[%emt 0:06:49]} Kh7 {[%emt 0:03:00]} 19. Kh1 {[%emt 0:00:55]} Rg6 {[%emt 0:01:58]} 20. g4 {[%emt 0:02:48]} Kh8 {[%emt 0:03:22]} 21. g5 {[%emt 0:04:15]} Nh7 {[%emt 0:01:43]} 22. Rg1 {[%emt 0:11:07]} Ndf8 {[%emt 0:03:34]} 23. Rg4 {[%emt 0:01:28]} Qd7 {[%emt 0:03:08]} 24. Nh6 {[%emt 0:03:11]} Bxg4 {[%emt 0:05:34]} 25. hxg4 {[%emt 0:00:23]} Ne6 {[%emt 0:02:34]} 26. Qf5 {[%emt 0:01:06]} Kg7 {[%emt 0:03:59]} 27. f4 {[%emt 0:02:03]} exf4 {[%emt 0:05:01]} 28. Rf1 {[%emt 0:00:16]} Be3 {[%emt 0:06:37]} 29. d4 {[%emt 0:01:51]} Rd8 {[%emt 0:01:52]} 30. Qd5 {[%emt 0:00:51]} Nhxg5 {[%emt 0:03:39]} 31. Nf5+ {[%emt 0:00:10]} Kg8 {[%emt 0:00:22]} 32. Qxb7 {[%emt 0:01:14]} Re8 {[%emt 0:03:19]} 33. Bxa6 {[%emt 0:00:19]} Nd8 {[%emt 0:01:25]} 34. Bb5 {[%emt 0:01:51]} Qe6 {[%emt 0:00:54]} 35. Qd5 {[%emt 0:00:31]} c6 {[%emt 0:02:00]} 36. Bxc6 {[%emt 0:00:34]} Nxc6 {[%emt 0:00:05]} 37. Qxc6 {[%emt 0:00:31]} Nxe4 {[%emt 0:01:27]} 38. d5 {[%emt 0:00:32]} Qe5 {[%emt 0:00:46]} 39. Nxe3 {[%emt 0:00:24]} fxe3 {[%emt 0:00:31]} 40. Rf5 {[%emt 0:00:00]} Nf2+ {[%emt 0:00:00]} 0-1

[Event "24th European Women Club Cup 2019"]
[Site "Ulcinj"]
[Date "2019.11.14"]
[Round "5.15"]
[White "Girya, Olga"]
[Black "Eric, Jovana"]
[Result "1-0"]
[ECO "A40"]
[WhiteElo "2476"]
[BlackElo "2314"]
[Annotator "ChessBase"]
[PlyCount "73"]
[EventDate "2019.11.10"]
[EventType "team-tourn"]
[EventCountry "MNE"]
[SourceTitle "playchess.com"]
[Source "ChessBase"]
[SourceQuality "1"]
[WhiteTeam "Ugra"]
[BlackTeam "Jelica PEP"]
[TimeControl "40/5400+30:1800+30"]

1. d4 {[%emt 0:00:00]} e6 {[%emt 0:00:00]} 2. c4 {[%emt 0:00:00]} f5 {[%emt 0:00:00]} 3. Nf3 {[%emt 0:00:00]} Nf6 {[%emt 0:00:04]} 4. g3 {[%emt 0:00:00]} Be7 {[%emt 0:00:16]} 5. Nc3 {[%emt 0:01:42]} d5 {[%emt 0:00:43]} 6. Bf4 {[%emt 0:02:43]} c6 {[%emt 0:00:57]} 7. e3 {[%emt 0:01:41]} O-O {[%emt 0:02:42]} 8. Rc1 {[%emt 0:00:29]} Ne4 {[%emt 0:01:23]} 9. h4 {[%emt 0:00:16]} Nd7 {[%emt 0:04:06]} 10. Be2 {[%emt 0:01:07]} Ndf6 {[%emt 0:02:52]} 11. Ne5 {[%emt 0:11:14]} Nd6 {[%emt 0:08:48]} 12. a3 {[%emt 0:13:27]} dxc4 {[%emt 0:08:11]} 13. Nxc4 {[%emt 0:00:30]} Nxc4 {[%emt 0:00:20]} 14. Bxc4 {[%emt 0:00:04]} Nd5 {[%emt 0:00:13]} 15. Be5 {[%emt 0:07:04]} Bf6 {[%emt 0:02:47]} 16. Bxf6 {[%emt 0:00:59]} Qxf6 {[%emt 0:00:08]} 17. O-O {[%emt 0:01:00]} Kh8 {[%emt 0:09:01]} 18. Qb3 {[%emt 0:10:32]} Nb6 {[%emt 0:07:08]} 19. Ne2 {[%emt 0:04:41]} e5 {[%emt 0:07:16]} 20. dxe5 {[%emt 0:00:13]} Qxe5 {[%emt 0:00:05]} 21. Nf4 {[%emt 0:00:10]} Bd7 {[%emt 0:02:14]} 22. Rfd1 {[%emt 0:03:22]} Rad8 {[%emt 0:06:49]} 23. Be6 {[%emt 0:06:16]} Bc8 {[%emt 0:06:32]} 24. Bxc8 {[%emt 0:03:51]} Rxc8 {[%emt 0:00:05]} 25. Ne6 {[%emt 0:02:35]} Rfe8 {[%emt 0:01:53]} 26. Ng5 {[%emt 0:00:18]} Qe7 {[%emt 0:18:47]} 27. Nf7+ {[%emt 0:00:23]} Kg8 {[%emt 0:00:04]} 28. Nd6+ {[%emt 0:00:22]} Kh8 {[%emt 0:00:03]} 29. Nxc8 {[%emt 0:00:38]} Rxc8 {[%emt 0:00:05]} 30. a4 {[%emt 0:04:40]} Rf8 {[%emt 0:02:48]} 31. a5 {[%emt 0:00:38]} Nd5 {[%emt 0:00:09]} 32. a6 {[%emt 0:00:14]} bxa6 {[%emt 0:02:03]} 33. Rxc6 {[%emt 0:00:11]} Nb4 {[%emt 0:00:59]} 34. Rcd6 {[%emt 0:03:38]} a5 {[%emt 0:00:33]} 35. Rd7 {[%emt 0:00:36]} Qc5 {[%emt 0:03:44]} 36. Rd8 {[%emt 0:00:31]} Nc6 {[%emt 0:00:44]} 37. Qc3 {[%emt 0:00:47]} 1-0

[Event "24th European Women Club Cup 2019"]
[Site "Ulcinj"]
[Date "2019.11.14"]
[Round "5.19"]
[White "Zimina, Olga"]
[Black "Djukic, Sandra"]
[Result "1-0"]
[ECO "A06"]
[WhiteElo "2406"]
[BlackElo "2148"]
[Annotator "NA"]
[PlyCount "77"]
[EventDate "2019.11.10"]
[EventType "team-tourn"]
[EventCountry "MNE"]
[SourceTitle "playchess.com"]
[Source "ChessBase"]
[SourceQuality "1"]
[WhiteTeam "Pentole Agnelli"]
[BlackTeam "Asseco SEE"]
[TimeControl "40/5400+30:1800+30"]

1. Nf3 {[%emt 0:00:00]} d5 {[%emt 0:00:00]} 2. g3 {[%emt 0:00:00]} Nf6 {[%emt 0:02:22]} 3. Bg2 {[%emt 0:00:00]} e6 {[%emt 0:01:27]} 4. O-O {[%emt 0:00:50]} Be7 {[%emt 0:01:08]} 5. d4 {[%emt 0:00:45]} O-O {[%emt 0:00:38]} 6. c4 {[%emt 0:00:05]} dxc4 {[%emt 0:00:47]} 7. Qc2 {[%emt 0:00:37]} b5 {[%emt 0:10:56]} 8. a4 {[%emt 0:00:18]} c6 {[%emt 0:25:58]} 9. b3 {[%emt 0:02:57]} cxb3 {[%emt 0:05:23]} 10. Qxb3 {[%emt 0:00:19]} b4 {[%emt 0:01:11]} 11. Ne5 {[%emt 0:14:05]} a5 {[%emt 0:13:57]} 12. Bb2 {[%emt 0:01:59]} Ba6 {[%emt 0:01:35]} 13. Re1 {[%emt 0:00:42]} Nd5 {[%emt 0:05:26]} 14. e4 {[%emt 0:08:22]} Nb6 {[%emt 0:01:11]} 15. Nd2 {[%emt 0:11:46]} c5 {[%emt 0:11:50]} 16. d5 {[%emt 0:02:17]} Ra7 {[%emt 0:10:39]} 17. Rad1 {[%emt 0:06:59]} exd5 {[%emt 0:00:27]} 18. exd5 {[%emt 0:00:08]} Bf6 {[%emt 0:03:03]} 19. Qc2 {[%emt 0:00:00]} c4 {[%emt 0:00:38]} 20. Bd4 {[%emt 0:13:40]} Re7 {[%emt 0:00:40]} 21. f4 {[%emt 0:07:18]} b3 {[%emt 0:00:38]} 22. Qf5 {[%emt 0:00:10]} Bc8 {[%emt 0:00:23]} 23. Qh5 {[%emt 0:00:09]} g6 {[%emt 0:00:40]} 24. Qh6 {[%emt 0:00:48]} N8d7 {[%emt 0:00:29]} 25. Ne4 {[%emt 0:00:18]} Bg7 {[%emt 0:00:16]} 26. Qxg7+ {[%emt 0:03:44]} Kxg7 {[%emt 0:00:02]} 27. Nc6+ {[%emt 0:00:06]} Kh6 {[%emt 0:01:11]} 28. g4 {[%emt 0:05:48]} g5 {[%emt 0:00:31]} 29. fxg5+ {[%emt 0:06:35]} Kg6 {[%emt 0:00:03]} 30. h4 {[%emt 0:00:09]} Re5 {[%emt 0:00:57]} 31. h5+ {[%emt 0:01:57]} Kg7 {[%emt 0:00:02]} 32. h6+ {[%emt 0:04:40]} Kg6 {[%emt 0:00:53]} 33. Bxe5 {[%emt 0:00:38]} Qe8 {[%emt 0:00:16]} 34. Nd6 {[%emt 0:02:19]} Nxe5 {[%emt 0:00:13]} 35. Nxe5+ {[%emt 0:01:45]} Qxe5 {[%emt 0:00:22]} 36. Rxe5 {[%emt 0:00:05]} Bxg4 {[%emt 0:00:21]} 37. Rf1 {[%emt 0:01:16]} c3 {[%emt 0:00:49]} 38. Be4+ {[%emt 0:00:39]} f5 {[%emt 0:00:04]} 39. gxf6+ {[%emt 0:00:22]} 1-0

[Event "24th European Women Club Cup 2019"]
[Site "Ulcinj"]
[Date "2019.11.14"]
[Round "5.20"]
[White "Manova, Ivana"]
[Black "Tomilova, Elena"]
[Result "1/2-1/2"]
[ECO "B24"]
[WhiteElo "1795"]
[BlackElo "2345"]
[Annotator "NA"]
[PlyCount "72"]
[EventDate "2019.11.10"]
[EventType "team-tourn"]
[EventCountry "MNE"]
[SourceTitle "playchess.com"]
[Source "ChessBase"]
[SourceQuality "1"]
[WhiteTeam "Asseco SEE"]
[BlackTeam "Pentole Agnelli"]
[TimeControl "40/5400+30:1800+30"]

1. e4 {[%emt 0:00:00]} c5 {[%emt 0:00:00]} 2. Nc3 {[%emt 0:00:00]} Nc6 {[%emt 0:00:00]} 3. Bb5 {[%emt 0:00:03]} Nd4 {[%emt 0:00:01]} 4. Bc4 {[%emt 0:00:15]} e6 {[%emt 0:00:13]} 5. Nge2 {[%emt 0:00:46]} Ne7 {[%emt 0:01:10]} 6. O-O {[%emt 0:01:08]} a6 {[%emt 0:01:43]} 7. a4 {[%emt 0:01:09]} g6 {[%emt 0:02:19]} 8. d3 {[%emt 0:02:30]} Bg7 {[%emt 0:00:24]} 9. Nxd4 {[%emt 0:03:04]} cxd4 {[%emt 0:00:43]} 10. Ne2 {[%emt 0:01:12]} O-O {[%emt 0:03:06]} 11. Bg5 {[%emt 0:10:21]} h6 {[%emt 0:02:43]} 12. Bf4 {[%emt 0:09:02]} d5 {[%emt 0:02:33]} 13. Bb3 {[%emt 0:11:00]} e5 {[%emt 0:06:15]} 14. Bg3 {[%emt 0:05:21]} g5 {[%emt 0:14:29]} 15. c3 {[%emt 0:13:34]} dxc3 {[%emt 0:20:15]} 16. Nxc3 {[%emt 0:01:40]} d4 {[%emt 0:00:23]} 17. Nd5 {[%emt 0:01:50]} Be6 {[%emt 0:00:19]} 18. Nxe7+ {[%emt 0:05:03]} Qxe7 {[%emt 0:00:58]} 19. Bxe6 {[%emt 0:05:24]} Qxe6 {[%emt 0:01:23]} 20. Qd2 {[%emt 0:01:42]} Rfc8 {[%emt 0:04:23]} 21. Rfc1 {[%emt 0:00:42]} Rc6 {[%emt 0:01:59]} 22. f3 {[%emt 0:09:07]} Rac8 {[%emt 0:00:39]} 23. Be1 {[%emt 0:01:30]} Bf8 {[%emt 0:07:34]} 24. Rxc6 {[%emt 0:06:52]} Rxc6 {[%emt 0:02:38]} 25. Rc1 {[%emt 0:06:52]} Rxc1 {[%emt 0:01:07]} 26. Qxc1 {[%emt 0:00:02]} Qb3 {[%emt 0:00:45]} 27. h4 {[%emt 0:01:15]} Qxd3 {[%emt 0:16:23]} 28. hxg5 {[%emt 0:00:21]} h5 {[%emt 0:00:36]} 29. Bg3 {[%emt 0:01:03]} Qe2 {[%emt 0:01:18]} 30. Bxe5 {[%emt 0:01:06]} d3 {[%emt 0:00:18]} 31. Bf4 {[%emt 0:00:32]} Bc5+ {[%emt 0:03:44]} 32. Qxc5 {[%emt 0:00:41]} Qe1+ {[%emt 0:00:09]} 33. Kh2 {[%emt 0:00:05]} Qh4+ {[%emt 0:00:04]} 34. Kg1 {[%emt 0:00:05]} Qe1+ {[%emt 0:00:45]} 35. Kh2 {[%emt 0:00:04]} Qh4+ {[%emt 0:00:07]} 36. Kg1 {[%emt 0:00:01]} Qe1+ 1/2-1/2

[Event "24th European Women Club Cup 2019"]
[Site "Ulcinj"]
[Date "2019.11.14"]
[Round "5.21"]
[White "Bodnaruk, Anastasia"]
[Black "Len, Irina"]
[Result "1-0"]
[ECO "B01"]
[WhiteElo "2412"]
[BlackElo "2036"]
[Annotator "NA"]
[PlyCount "62"]
[EventDate "2019.11.10"]
[EventType "team-tourn"]
[EventCountry "MNE"]
[SourceTitle "playchess.com"]
[Source "ChessBase"]
[SourceQuality "1"]
[WhiteTeam "SPB"]
[BlackTeam "Hertzeliya"]
[TimeControl "40/5400+30:1800+30"]

1. e4 {[%emt 0:00:00]} d5 {[%emt 0:00:00]} 2. exd5 {[%emt 0:00:00]} Qxd5 {[%emt 0:00:00]} 3. Nc3 {[%emt 0:00:00]} Qd8 {[%emt 0:00:00]} 4. d4 {[%emt 0:00:06]} Nf6 {[%emt 0:00:25]} 5. Nf3 {[%emt 0:02:24]} a6 {[%emt 0:03:08]} 6. Ne5 {[%emt 0:05:24]} e6 {[%emt 0:04:12]} 7. Be3 {[%emt 0:02:00]} Nbd7 {[%emt 0:02:47]} 8. f4 {[%emt 0:08:15]} Bb4 {[%emt 0:02:20]} 9. Bd3 {[%emt 0:08:19]} Nd5 {[%emt 0:08:10]} 10. Bd2 {[%emt 0:02:03]} Nxe5 {[%emt 0:05:44]} 11. dxe5 {[%emt 0:00:24]} Nxc3 {[%emt 0:03:33]} 12. Bxc3 {[%emt 0:08:06]} Bxc3+ {[%emt 0:03:31]} 13. bxc3 {[%emt 0:00:01]} Qd5 {[%emt 0:00:14]} 14. O-O {[%emt 0:04:31]} Bd7 {[%emt 0:04:54]} 15. Kh1 {[%emt 0:09:48]} Bc6 {[%emt 0:00:40]} 16. Qe2 {[%emt 0:00:32]} h5 {[%emt 0:00:39]} 17. Qf2 {[%emt 0:08:49]} h4 {[%emt 0:01:39]} 18. h3 {[%emt 0:04:14]} g6 {[%emt 0:10:04]} 19. c4 {[%emt 0:05:27]} Qa5 {[%emt 0:03:04]} 20. a4 {[%emt 0:05:47]} O-O-O {[%emt 0:05:51]} 21. Rab1 {[%emt 0:08:47]} Qc3 {[%emt 0:01:51]} 22. a5 {[%emt 0:06:42]} Qxa5 {[%emt 0:05:55]} 23. Qa7 {[%emt 0:05:24]} Qd2 {[%emt 0:01:00]} 24. Rg1 {[%emt 0:01:03]} Qxf4 {[%emt 0:00:38]} 25. Rbd1 {[%emt 0:02:15]} Qg3 {[%emt 0:02:18]} 26. Be4 {[%emt 0:00:55]} Bd5 {[%emt 0:07:26]} 27. cxd5 {[%emt 0:00:21]} Qxe5 {[%emt 0:01:14]} 28. d6 {[%emt 0:01:44]} Rxd6 {[%emt 0:01:44]} 29. Rxd6 {[%emt 0:00:06]} c6 {[%emt 0:02:52]} 30. Rgd1 {[%emt 0:00:29]} Qxe4 {[%emt 0:00:38]} 31. Rd7 {[%emt 0:00:24]} Qf5 1-0

[Event "24th European Women Club Cup 2019"]
[Site "Ulcinj"]
[Date "2019.11.14"]
[Round "5.22"]
[White "Haitovich, Avital"]
[Black "Ovod, Evgenija"]
[Result "0-1"]
[ECO "A04"]
[WhiteElo "1998"]
[BlackElo "2347"]
[Annotator "NA"]
[PlyCount "72"]
[EventDate "2019.11.10"]
[EventType "team-tourn"]
[EventCountry "MNE"]
[SourceTitle "playchess.com"]
[Source "ChessBase"]
[SourceQuality "1"]
[WhiteTeam "Hertzeliya"]
[BlackTeam "SPB"]
[TimeControl "40/5400+30:1800+30"]

1. Nf3 {[%emt 0:00:00]} c5 {[%emt 0:00:55]} 2. g3 {[%emt 0:00:00]} b6 {[%emt 0:00:06]} 3. Bg2 {[%emt 0:00:03]} Bb7 {[%emt 0:00:04]} 4. O-O {[%emt 0:00:31]} Nf6 {[%emt 0:00:20]} 5. d3 {[%emt 0:01:29]} d5 {[%emt 0:03:36]} 6. Nbd2 {[%emt 0:04:34]} e6 {[%emt 0:01:01]} 7. Re1 {[%emt 0:03:11]} Be7 {[%emt 0:00:15]} 8. c3 {[%emt 0:05:13]} O-O {[%emt 0:01:52]} 9. Qc2 {[%emt 0:00:38]} Nc6 {[%emt 0:09:21]} 10. e4 {[%emt 0:04:40]} h6 {[%emt 0:06:31]} 11. Nf1 {[%emt 0:03:59]} b5 {[%emt 0:02:07]} 12. e5 {[%emt 0:10:21]} Nd7 {[%emt 0:00:09]} 13. h4 {[%emt 0:00:36]} d4 {[%emt 0:08:47]} 14. N1h2 {[%emt 0:04:05]} Nb6 {[%emt 0:04:45]} 15. h5 {[%emt 0:22:55]} Rc8 {[%emt 0:14:33]} 16. Ng4 {[%emt 0:07:12]} c4 {[%emt 0:01:15]} 17. dxc4 {[%emt 0:08:16]} d3 {[%emt 0:00:33]} 18. Qd1 {[%emt 0:04:35]} bxc4 {[%emt 0:03:34]} 19. Qd2 {[%emt 0:01:14]} Re8 {[%emt 0:03:11]} 20. Re4 {[%emt 0:07:34]} Bf8 {[%emt 0:02:07]} 21. Ne3 {[%emt 0:05:48]} Ne7 {[%emt 0:07:36]} 22. Rd4 {[%emt 0:00:47]} Qc7 {[%emt 0:00:23]} 23. b3 {[%emt 0:02:40]} Nf5 {[%emt 0:11:57]} 24. Nxf5 {[%emt 0:00:20]} exf5 {[%emt 0:00:04]} 25. bxc4 {[%emt 0:00:10]} Be4 {[%emt 0:02:19]} 26. Nh4 {[%emt 0:01:21]} Qxe5 {[%emt 0:04:48]} 27. Bxe4 {[%emt 0:00:39]} fxe4 {[%emt 0:00:10]} 28. a4 {[%emt 0:00:33]} Bc5 {[%emt 0:03:14]} 29. a5 {[%emt 0:00:01]} Bxd4 {[%emt 0:00:17]} 30. cxd4 {[%emt 0:00:01]} Qxd4 {[%emt 0:00:03]} 31. Bb2 {[%emt 0:00:07]} Nxc4 {[%emt 0:00:06]} 32. Bxd4 {[%emt 0:00:30]} Nxd2 {[%emt 0:00:04]} 33. Bxa7 {[%emt 0:01:43]} Nb3 {[%emt 0:00:40]} 34. Rd1 {[%emt 0:00:10]} d2 {[%emt 0:01:54]} 35. Ng2 {[%emt 0:00:47]} e3 {[%emt 0:01:45]} 36. Nxe3 {[%emt 0:00:28]} Rc1 {[%emt 0:00:10]} 0-1